bitfinex/quotes_SOLUSD_20251019
["timestamp","ask_amount","ask_price","bid_price","bid_amount"]
[1760855110352,3.32887142,186.49,186.47,0.65]
[1760855110646,3.32887142,186.49,186.48,0.65]
[1760855111452,3.32887142,186.49,186.47,9.22973308]
[1760855111652,3.32887142,186.48,186.47,9.87973308]
[1760855112860,3.32887142,186.48,186.47,9.22973308]
[1760855113443,3.32887142,186.48,186.45,0.65]
[1760855113644,3.32887142,186.46,186.45,0.65]
[1760855113838,3.32887142,186.46,186.45,4.22380093]
[1760855114058,3.32887142,186.46,186.45,3.57380093]
[1760855114562,3.32887142,186.46,186.45,4.26380093]
[1760855115174,3.32887142,186.47,186.45,4.26380093]
[1760855115465,3.32887142,186.48,186.46,0.69]
[1760855115664,3.32887142,186.49,186.46,0.69]
[1760855115871,3.32887142,186.49,186.46,6.05421735]
[1760855116058,3.32887142,186.47,186.46,5.36421735]
[1760855116452,3.32887142,186.47,186.46,6.05421735]
[1760855118274,3.32887142,186.48,186.46,6.05421735]
[1760855118460,3.32887142,186.48,186.47,0.69]
[1760855118659,3.32887142,186.48,186.46,6.05421735]
[1760855118862,3.32887142,186.48,186.46,0.69]
[1760855119063,3.32887142,186.48,186.47,6.05421735]
[1760855119267,3.32887142,186.48,186.47,6.74421735]
[1760855120171,3.32887142,186.48,186.47,6.05421735]
[1760855121454,3.32887142,186.48,186.47,6.74421735]
[1760855122773,102.7,186.51,186.47,6.74421735]
[1760855122974,3.32887142,186.48,186.47,6.74421735]
[1760855123370,102.7,186.51,186.47,6.74421735]
[1760855123568,3.32887142,186.48,186.47,6.74421735]
[1760855126786,102.7,186.51,186.47,6.74421735]
[1760855126963,3.32887142,186.48,186.47,6.74421735]
[1760855130377,102.1,186.51,186.47,6.74421735]
[1760855130591,3.32887142,186.54,186.48,4.01887142]
[1760855130879,3.58344786,186.53,186.49,1.22622178]
[1760855131076,3.32887142,186.52,186.49,11.95326334]
[1760855131285,3.32887142,186.51,186.49,11.95326334]
[1760855131775,3.32887142,186.5,186.49,11.95326334]
[1760855132080,3.32887142,186.5,186.49,12.64326334]
[1760855132468,3.32887142,186.5,186.46,0.69]
[1760855132662,3.32887142,186.47,186.46,0.69]
[1760855132980,3.32887142,186.47,186.46,16.81859869]
[1760855133573,0.6,186.51,186.46,16.81859869]
[1760855133766,3.32887142,186.48,186.47,0.69]
[1760855133968,3.32887142,186.48,186.47,23.57]
[1760855134280,3.32887142,186.48,186.47,39.00859869]
[1760855134677,3.32887142,186.48,186.47,16.12859869]
[1760855135480,3.32887142,186.48,186.47,16.81859869]
[1760855138298,102.7,186.53,186.47,16.81859869]
[1760855138474,3.32887142,186.5,186.47,16.12859869]
[1760855138676,3.32887142,186.52,186.48,0.69]
[1760855139497,3.32887142,186.52,186.49,5.36302081]
[1760855139697,3.32887142,186.52,186.5,0.69]
[1760855140279,3.32887142,186.51,186.5,0.69]
[1760855141103,3.32887142,186.51,186.5,6.05302081]
[1760855145896,3.32887142,186.52,186.5,6.05302081]
[1760855146076,6.91340163,186.55,186.51,1.19616428]
[1760855146271,3.32887142,186.55,186.52,0.66]
[1760855146482,3.32887142,186.55,186.52,9.35189223]
[1760855146717,3.32887142,186.54,186.52,8.69189223]
[1760855146889,3.32887142,186.54,186.53,0.66]
[1760855147583,3.32887142,186.54,186.53,8.69189223]
[1760855150100,3.32887142,186.54,186.51,0.66]
[1760855150401,3.32887142,186.52,186.51,8.69189223]
[1760855152896,3.32887142,186.52,186.51,9.35189223]
[1760855153099,3.32887142,186.53,186.51,9.35189223]
[1760855153401,3.32887142,186.53,186.52,0.66]
[1760855153786,102.1,186.57,186.52,14.06839627]
[1760855154105,3.32887142,186.55,186.53,0.66]
[1760855154310,3.58471915,186.54,186.49,3.32887142]
[1760855154505,3.32887142,186.56,186.53,14.06839627]
[1760855154705,3.58481868,186.55,186.53,14.06839627]
[1760855154885,3.32887142,186.56,186.54,0.66]
[1760855155082,3.5849027,186.55,186.53,14.06839627]
[1760855155288,3.32887142,186.55,186.5,9.22686302]
[1760855155486,3.32887142,186.55,186.51,14.06839627]
[1760855155687,3.32887142,186.55,186.52,0.66]
[1760855156312,3.32887142,186.55,186.53,14.06839627]
[1760855156507,3.32887142,186.55,186.54,0.66]
[1760855156714,6.91326509,186.55,186.54,0.66]
[1760855156888,3.32887142,186.55,186.54,0.66]
[1760855157087,102.1,186.57,186.54,14.72839627]
[1760855157088,3.32887142,186.56,186.54,14.72839627]
[1760855157291,3.32887142,186.58,186.55,0.66]
[1760855157594,26.20887142,186.58,186.55,0.66]
[1760855157899,3.32887142,186.59,186.56,14.06839627]
[1760855158095,3.32887142,186.59,186.57,0.66]
[1760855158283,3.32887142,186.6,186.57,0.66]
[1760855158487,3.58376878,186.59,186.57,0.66]
[1760855158696,3.32887142,186.6,186.57,0.66]
[1760855158904,3.32887142,186.59,186.58,0.66]
[1760855159498,3.58272031,186.6,186.58,0.66]
[1760855159690,3.32887142,186.59,186.58,0.66]
[1760855159889,3.32887142,186.59,186.56,14.06839627]
[1760855160189,3.32887142,186.59,186.57,0.66]
[1760855161291,3.32887142,186.59,186.56,14.06839627]
[1760855161619,3.32887142,186.59,186.57,0.66]
[1760855161921,3.32887142,186.59,186.58,0.66]
[1760855165012,0.6,186.59,186.56,14.06839627]
[1760855165204,3.32887142,186.58,186.57,0.66]
[1760855167902,3.32887142,186.58,186.57,14.72839627]
[1760855168695,3.32887142,186.58,186.56,0.66]
[1760855168890,3.32887142,186.58,186.52,3.32887142]
[1760855168891,3.92887142,186.57,186.52,6.55745284]
[1760855169096,0.6,186.59,186.55,14.72839627]
[1760855169318,0.6,186.58,186.55,14.72839627]
[1760855169699,0.6,186.58,186.52,0.53613553]
[1760855169904,0.6,186.58,186.54,14.72839627]
[1760855170219,3.32887142,186.55,186.54,14.72839627]
[1760855170803,3.32887142,186.55,186.53,0.66]
[1760855171102,3.32887142,186.54,186.53,15.38839627]
[1760855172697,3.57753977,186.6,186.53,24.07833561]
[1760855172899,3.32887142,186.58,186.54,0.66]
[1760855173096,3.32887142,186.56,186.54,0.66]
[1760855173320,3.32887142,186.56,186.54,11.73647521]
[1760855173506,3.32887142,186.57,186.54,11.73647521]
[1760855173815,3.32887142,186.58,186.54,11.73647521]
[1760855174524,3.32887142,186.57,186.54,11.73647521]
[1760855174716,3.32887142,186.57,186.54,11.76647521]
[1760855175931,3.32887142,186.57,186.54,0.69]
[1760855176226,3.32887142,186.57,186.55,3.57903621]
[1760855176728,3.92887142,186.57,186.55,3.57903621]
[1760855177625,3.32887142,186.59,186.55,3.57903621]
[1760855177822,3.32887142,186.59,186.56,0.69]
[1760855178216,3.32887142,186.59,186.55,3.57903621]
[1760855178419,3.92887142,186.59,186.55,3.57903621]
[1760855178736,3.32887142,186.56,186.51,0.69]
[1760855178932,3.32887142,186.55,186.52,0.69]
[1760855179231,3.32887142,186.55,186.53,8.69017081]
[1760855179604,3.32887142,186.55,186.53,9.38017081]
[1760855180332,3.32887142,186.56,186.53,9.38017081]
[1760855182200,3.32887142,186.56,186.53,8.69017081]
[1760855182933,3.32887142,186.54,186.48,0.69]
[1760855183161,3.32887142,186.51,186.49,8.69017081]
[1760855183435,0.6,186.53,186.48,0.69]
[1760855183611,3.32887142,186.5,186.48,0.69]
[1760855184122,3.32887142,186.5,186.47,8.69017081]
[1760855184514,3.32887142,186.5,186.47,9.38017081]
[1760855185322,3.32887142,186.49,186.47,0.69]
[1760855186135,3.32887142,186.5,186.47,0.69]
[1760855188653,0.6,186.52,186.47,0.69]
[1760855188822,3.32887142,186.49,186.47,0.69]
[1760855190537,3.32887142,186.49,186.46,9.38017081]
[1760855190737,3.32887142,186.48,186.46,10.07017081]
[1760855190915,3.32887142,186.48,186.46,0.69]
[1760855191432,3.32887142,186.49,186.46,0.69]
[1760855191620,3.32887142,186.5,186.47,0.69]
[1760855191824,3.32887142,186.5,186.48,0.69]
[1760855192523,26.20887142,186.51,186.48,0.69]
[1760855194819,3.32887142,186.5,186.48,0.69]
[1760855195321,22.88,186.51,186.45,9.22856013]
[1760855195523,3.32887142,186.55,186.49,0.69]
[1760855195726,4.17774656,186.56,186.49,13.93526401]
[1760855195932,3.32887142,186.55,186.5,0.69]
[1760855196529,3.32887142,186.55,186.51,9.91639259]
[1760855196742,3.32887142,186.55,186.51,10.60639259]
[1760855197126,3.32887142,186.55,186.52,0.69]
[1760855197941,3.32887142,186.56,186.53,0.69]
[1760855200738,3.32887142,186.56,186.52,9.91639259]
[1760855201049,3.32887142,186.56,186.52,10.60639259]
[1760855201344,3.32887142,186.56,186.52,9.91639259]
[1760855201555,3.32887142,186.56,186.53,0.69]
[1760855201742,3.32887142,186.56,186.52,10.60639259]
[1760855201929,3.32887142,186.55,186.52,0.69]
[1760855202132,3.32887142,186.55,186.51,0.69]
[1760855202454,3.32887142,186.55,186.51,14.09692832]
[1760855202656,3.92887142,186.55,186.51,14.09692832]
[1760855203150,3.32887142,186.54,186.51,14.09692832]
[1760855204561,3.32887142,186.54,186.52,0.67]
[1760855205432,3.32887142,186.55,186.52,0.67]
[1760855208563,3.32887142,186.54,186.52,0.67]
[1760855212752,3.32887142,186.55,186.52,0.67]
[1760855216945,3.32887142,186.55,186.52,14.07692832]
[1760855218370,3.32887142,186.56,186.52,13.40692832]
[1760855218674,6.91430631,186.56,186.53,0.67]
[1760855219360,3.92887142,186.56,186.53,0.67]
[1760855220566,3.32887142,186.56,186.53,0.67]
[1760855221864,102.1,186.57,186.53,0.67]
[1760855222249,102.1,186.57,186.54,13.40692832]
[1760855222559,102.1,186.57,186.55,0.67]
[1760855223142,102.1,186.57,186.55,16.79079851]
[1760855223357,102.1,186.57,186.56,0.67]
[1760855223845,3.32887142,186.6,186.56,0.67]
[1760855224062,26.20887142,186.59,186.56,0.67]
[1760855224360,26.20887142,186.59,186.55,16.12079851]
[1760855224565,0.6,186.58,186.55,16.12079851]
[1760855224766,3.92887142,186.58,186.55,16.12079851]
[1760855225355,3.32887142,186.58,186.55,16.79079851]
[1760855225670,0.8,186.65,186.57,3.32887142]
[1760855225848,3.32887142,186.62,186.55,3.32887142]
[1760855226049,0.6,186.62,186.56,0.67]
[1760855226349,3.32887142,186.62,186.56,0.67]
[1760855226762,3.32887142,186.61,186.57,3.58705755]
[1760855226945,3.32887142,186.61,186.58,0.67]
[1760855227553,3.32887142,186.61,186.59,3.58551655]
[1760855228454,3.32887142,186.6,186.59,3.58551655]
[1760855235071,37.68534663,186.6,186.52,0.65]
[1760855235382,3.32887142,186.55,186.52,6.01019232]
[1760855235568,3.32887142,186.55,186.53,0.65]
[1760855237586,3.32887142,186.54,186.53,0.65]
[1760855240090,3.32887142,186.54,186.52,5.36019232]
[1760855240388,3.32887142,186.54,186.52,6.01019232]
[1760855241494,3.32887142,186.54,186.53,0.65]
[1760855242377,3.32887142,186.56,186.53,0.65]
[1760855242790,3.32887142,186.56,186.53,11.37154488]
[1760855243094,3.32887142,186.56,186.54,0.65]
[1760855245297,3.32887142,186.56,186.55,0.65]
[1760855246479,3.32887142,186.57,186.55,0.65]
[1760855247089,3.32887142,186.56,186.55,0.65]
[1760855247579,3.32887142,186.56,186.54,0.65]
[1760855250087,3.32887142,186.56,186.55,0.65]
[1760855252000,3.32887142,186.57,186.55,0.65]
[1760855252999,3.32887142,186.56,186.54,0.65]
[1760855261705,3.32887142,186.56,186.55,0.65]
[1760855261902,3.32887142,186.56,186.54,0.65]
[1760855269114,3.32887142,186.56,186.53,11.40154488]
[1760855269988,3.32887142,186.56,186.54,0.68]
[1760855270200,0.6,186.58,186.54,0.68]
[1760855270401,3.32887142,186.56,186.54,0.68]
[1760855273117,3.32887142,186.57,186.55,0.68]
[1760855273811,3.32887142,186.57,186.56,0.68]
[1760855275905,3.32887142,186.57,186.55,0.68]
[1760855276618,3.32887142,186.57,186.53,16.08258673]
[1760855276619,3.32887142,186.56,186.54,0.68]
[1760855279523,3.32887142,186.55,186.53,11.40154488]
[1760855280099,3.32887142,186.55,186.53,10.72154488]
[1760855280420,3.32887142,186.54,186.51,0.68]
[1760855280617,3.32887142,186.53,186.52,0.68]
[1760855281215,3.32887142,186.55,186.52,0.68]
[1760855281422,3.32887142,186.55,186.52,6.04126444]
[1760855281621,3.32887142,186.56,186.53,0.68]
[1760855285601,3.32887142,186.57,186.53,6.04100544]
[1760855285810,3.32887142,186.57,186.54,0.68]
[1760855286012,3.32887142,186.57,186.54,16.80079851]
[1760855286416,3.32887142,186.57,186.54,0.68]
[1760855286616,3.32887142,186.57,186.55,16.12079851]
[1760855289015,3.32887142,186.57,186.55,16.84079851]
[1760855289428,3.32887142,186.57,186.55,0.72]
[1760855289725,3.32887142,186.57,186.56,16.12079851]
[1760855293529,6.930505,186.57,186.56,16.12079851]
[1760855299513,3.32887142,186.57,186.56,16.12079851]
[1760855299718,3.32887142,186.57,186.56,16.78079851]
[1760855302713,3.32887142,186.57,186.56,16.12079851]
[1760855302917,6.92722165,186.57,186.5,9.22677274]
[1760855303132,3.32887142,186.55,186.54,16.12079851]
[1760855303325,3.32887142,186.55,186.54,16.78079851]
[1760855304425,3.32887142,186.56,186.54,16.78079851]
[1760855304918,3.32887142,186.56,186.54,0.66]
[1760855305237,3.32887142,186.56,186.55,16.12253123]
[1760855306745,3.32887142,186.56,186.55,16.78253123]
[1760855315041,102.7,186.59,186.55,16.78253123]
[1760855315239,3.59893546,186.58,186.56,0.66]
[1760855315430,3.32887142,186.57,186.54,0.66]
[1760855315738,3.59895418,186.58,186.55,0.66]
[1760855315918,3.32887142,186.56,186.55,0.66]
[1760855316119,3.32887142,186.56,186.55,6.02134025]
[1760855316728,3.32887142,186.57,186.55,6.02134025]
[1760855316946,3.32887142,186.56,186.55,6.02134025]
[1760855317246,3.32887142,186.56,186.55,0.66]
[1760855317543,3.32887142,186.56,186.55,6.68134025]
[1760855327138,3.32887142,186.56,186.55,6.02134025]
[1760855328033,3.32887142,186.56,186.55,6.70134025]
[1760855328354,3.32887142,186.56,186.55,6.02134025]
[1760855328550,3.92887142,186.56,186.55,6.02134025]
[1760855329656,3.32887142,186.56,186.55,6.02134025]
[1760855332239,3.32887142,186.56,186.55,6.70134025]
[1760855336446,3.59896881,186.57,186.55,6.70134025]
[1760855336661,3.32887142,186.56,186.55,6.70134025]
[1760855337751,3.32887142,186.56,186.55,6.02134025]
[1760855338064,3.32887142,186.56,186.55,6.70134025]
[1760855340146,3.32887142,186.56,186.55,6.02134025]
[1760855340468,3.32887142,186.56,186.55,6.70134025]
[1760855342765,3.32887142,186.56,186.55,6.02134025]
[1760855343270,3.92887142,186.56,186.52,0.68]
[1760855343469,3.32887142,186.53,186.52,0.68]
[1760855343976,3.32887142,186.53,186.5,0.68]
[1760855344178,0.6,186.55,186.52,3.32887142]
[1760855344350,3.32887142,186.53,186.52,3.32887142]
[1760855344546,3.92887142,186.53,186.44,3.42887142]
[1760855344753,3.32887142,186.49,186.46,22.88]
[1760855344984,3.32887142,186.49,186.47,0.68]
[1760855345153,3.32887142,186.5,186.47,0.68]
[1760855345565,3.32887142,186.5,186.48,16.12686466]
[1760855345772,3.32887142,186.5,186.49,0.68]
[1760855346451,3.32887142,186.5,186.49,16.80686466]
[1760855352099,3.32887142,186.51,186.49,16.80686466]
[1760855352283,3.32887142,186.51,186.5,0.68]
[1760855352793,3.32887142,186.51,186.5,4.27594825]
[1760855359100,3.32887142,186.51,186.5,3.59594825]
[1760855359705,3.32887142,186.51,186.5,4.27594825]
[1760855360706,3.59594825,186.55,186.5,4.27594825]
[1760855361000,3.32887142,186.51,186.5,4.27594825]
[1760855361202,3.32887142,186.51,186.5,0.68]
[1760855361408,3.32887142,186.51,186.5,6.04275578]
[1760855382145,102.7,186.54,186.5,6.04275578]
[1760855382441,3.32887142,186.51,186.5,6.04275578]
[1760855382645,3.32887142,186.51,186.5,0.68]
[1760855383926,102.1,186.54,186.5,6.04185338]
[1760855384125,102.1,186.54,186.5,14.73319614]
[1760855384333,105.42887142,186.54,186.51,0.71]
[1760855384547,3.32887142,186.53,186.51,0.71]
[1760855384723,3.32887142,186.53,186.51,14.73319614]
[1760855384924,3.32887142,186.53,186.52,0.71]
[1760855385532,3.32887142,186.53,186.52,15.44319614]
[1760855386430,3.32887142,186.53,186.52,14.73319614]
[1760855386635,3.92887142,186.53,186.52,14.73319614]
[1760855389645,3.32887142,186.53,186.52,14.73319614]
[1760855400238,102.1,186.54,186.52,15.44319614]
[1760855400450,102.1,186.54,186.53,0.71]
[1760855400755,105.42887142,186.54,186.53,0.71]
[1760855400959,105.42887142,186.54,186.53,15.44319614]
[1760855402745,105.42887142,186.54,186.53,14.73319614]
[1760855404663,105.42887142,186.54,186.45,0.53633681]
[1760855404664,10.87647521,186.49,186.44,0.1]
[1760855404963,3.32887142,186.45,186.44,0.1]
[1760855405255,3.32887142,186.45,186.44,0.81]
[1760855406867,3.32887142,186.45,186.44,0.1]
[1760855410768,102.1,186.47,186.44,0.78]
[1760855411073,3.32887142,186.46,186.44,0.78]
[1760855416254,3.32887142,186.45,186.44,0.78]
[1760855417476,102.1,186.47,186.44,0.78]
[1760855417675,105.42887142,186.47,186.44,0.78]
[1760855417976,105.42887142,186.47,186.45,14.04975365]
[1760855418176,105.42887142,186.47,186.46,0.67]
[1760855419281,3.32887142,186.47,186.46,0.67]
[1760855420989,102.1,186.51,186.46,6.03308055]
[1760855421198,102.1,186.51,186.47,0.67]
[1760855421361,3.32887142,186.49,186.47,0.67]
[1760855421677,3.92887142,186.48,186.44,0.77]
[1760855421857,3.32887142,186.46,186.45,8.69223049]
[1760855422255,3.32887142,186.46,186.44,0.1]
[1760855422456,3.32887142,186.45,186.44,9.46223049]
[1760855422858,3.32887142,186.45,186.44,0.1]
[1760855424175,3.92887142,186.45,186.44,0.1]
[1760855425182,3.32887142,186.45,186.44,0.1]
[1760855425594,3.32887142,186.45,186.44,0.77]
[1760855425889,3.32887142,186.46,186.44,0.77]
[1760855426070,3.32887142,186.45,186.44,0.1]
[1760855427111,0.6,186.47,186.44,0.1]
[1760855427391,3.32887142,186.45,186.44,0.77]
[1760855427767,3.32887142,186.46,186.44,0.77]
[1760855430179,102.7,186.5,186.44,0.1]
[1760855430180,3.32887142,186.45,186.44,0.1]
[1760855430762,3.92887142,186.45,186.44,0.1]
[1760855430967,3.32887142,186.45,186.44,0.1]
[1760855437470,22.88,186.41,186.38,0.1]
[1760855437805,6.65774284,186.39,186.38,0.1]
[1760855438105,33.75647521,186.36,186.35,0.1]
[1760855438270,10.87647521,186.35,186.28,0.1]
[1760855438483,14.60534663,186.35,186.28,0.1]
[1760855438720,14.60534663,186.35,186.3,0.67]
[1760855439099,14.60534663,186.35,186.28,0.1]
[1760855439100,3.32887142,186.35,186.28,0.1]
[1760855439400,3.32887142,186.35,186.3,0.67]
[1760855440015,3.32887142,186.35,186.32,0.67]
[1760855440191,3.32887142,186.35,186.28,0.1]
[1760855440502,3.32887142,186.35,186.31,0.77]
[1760855440810,3.32887142,186.35,186.32,0.67]
[1760855441394,3.32887142,186.35,186.34,0.77]
[1760855441581,3.32887142,186.35,186.34,0.1]
[1760855445591,11.27647521,186.38,186.34,0.1]
[1760855445796,3.32887142,186.35,186.34,0.1]
[1760855447593,3.32887142,186.35,186.34,0.78]
[1760855447790,3.32887142,186.36,186.34,0.78]
[1760855448301,102.1,186.38,186.35,0.68]
[1760855448495,3.32887142,186.36,186.34,0.1]
[1760855448704,3.32887142,186.35,186.34,0.1]
[1760855448887,3.32887142,186.35,186.34,0.78]
[1760855453227,102.5,186.38,186.34,0.78]
[1760855453228,102.1,186.38,186.34,0.78]
[1760855453514,3.32887142,186.35,186.34,0.1]
[1760855454116,102.1,186.38,186.34,0.78]
[1760855454418,105.42887142,186.38,186.35,0.68]
[1760855457019,3.32887142,186.36,186.34,0.1]
[1760855457221,3.32887142,186.35,186.34,0.1]
[1760855462423,125.38,186.36,186.34,0.1]
[1760855462621,3.32887142,186.35,186.34,0.1]
[1760855465018,3.32887142,186.36,186.34,0.78]
[1760855465223,22.88,186.36,186.34,2.93221543]
[1760855465402,22.88,186.36,186.35,0.68]
[1760855466323,3.32887142,186.38,186.35,0.68]
[1760855466521,3.32887142,186.38,186.36,0.68]
[1760855466828,3.32887142,186.38,186.36,0.18]
[1760855467706,3.32887142,186.38,186.34,0.1]
[1760855467907,3.32887142,186.37,186.34,0.1]
[1760855468705,3.32887142,186.37,186.35,0.72]
[1760855471410,22.88,186.38,186.34,0.1]
[1760855471718,124.98,186.41,186.36,0.72]
[1760855471913,3.32887142,186.38,186.37,0.72]
[1760855472525,102.1,186.4,186.37,0.72]
[1760855472701,3.32887142,186.38,186.34,0.1]
[1760855473326,102.1,186.4,186.35,0.72]
[1760855473625,105.42887142,186.4,186.35,0.72]
[1760855475130,3.32887142,186.39,186.35,0.72]
[1760855477324,3.32887142,186.38,186.35,0.72]
[1760855478932,3.32887142,186.38,186.36,0.66]
[1760855480410,3.32887142,186.38,186.37,0.66]
[1760855480617,3.32887142,186.39,186.37,0.66]
[1760855481018,3.32887142,186.39,186.35,0.66]
[1760855481329,3.32887142,186.39,186.36,0.66]
[1760855482717,4.02887142,186.39,186.36,0.66]
[1760855483334,3.32887142,186.39,186.36,0.66]
[1760855485124,3.32887142,186.39,186.37,0.66]
[1760855485521,3.32887142,186.39,186.36,0.66]
[1760855486738,4.02887142,186.39,186.34,0.76]
[1760855486931,3.32887142,186.38,186.34,0.76]
[1760855487151,3.32887142,186.38,186.35,0.66]
[1760855494928,3.32887142,186.38,186.36,0.66]
[1760855495430,3.32887142,186.38,186.35,0.66]
[1760855497045,4.02887142,186.38,186.35,0.66]
[1760855498338,4.02887142,186.38,186.34,0.1]
[1760855498542,0.7,186.37,186.34,0.76]
[1760855499034,4.02887142,186.38,186.34,0.76]
[1760855499229,4.02887142,186.38,186.34,0.1]
[1760855499436,4.02887142,186.38,186.34,0.76]
[1760855500349,4.02887142,186.38,186.34,0.1]
[1760855500537,4.02887142,186.38,186.34,0.76]
[1760855500947,4.02887142,186.38,186.34,0.1]
[1760855501146,102.1,186.4,186.35,0.66]
[1760855501339,4.02887142,186.38,186.35,0.66]
[1760855501540,0.7,186.38,186.35,0.66]
[1760855501936,4.02887142,186.39,186.35,0.66]
[1760855502859,0.7,186.38,186.35,0.66]
[1760855503550,4.02887142,186.38,186.34,0.78]
[1760855503749,0.71,186.37,186.34,0.1]
[1760855503947,3.32887142,186.38,186.34,0.1]
[1760855504137,0.71,186.37,186.34,0.1]
[1760855504333,3.32887142,186.36,186.34,0.1]
[1760855504541,0.71,186.35,186.34,0.1]
[1760855505046,4.03887142,186.36,186.34,0.1]
[1760855505450,0.71,186.35,186.34,0.1]
[1760855505651,4.03887142,186.35,186.34,0.1]
[1760855505855,4.30508288,186.35,186.34,0.1]
[1760855506055,7.6339543,186.35,186.34,0.1]
[1760855508334,4.30508288,186.35,186.34,0.1]
[1760855508639,22.88,186.35,186.34,0.1]
[1760855508845,30.51452238,186.35,186.34,0.1]
[1760855510354,41.39099759,186.35,186.34,0.1]
[1760855510562,14.20534663,186.34,186.33,0.1]
[1760855510763,17.80099759,186.34,186.33,0.1]
[1760855510955,18.51099759,186.34,186.33,0.1]
[1760855511362,33.75647521,186.32,186.31,0.1]
[1760855511581,29.80452238,186.32,186.31,0.1]
[1760855511872,7.63118067,186.32,186.31,0.1]
[1760855512079,27.18230925,186.32,186.31,0.1]
[1760855512367,26.91887142,186.32,186.31,0.1]
[1760855512537,44.71546849,186.32,186.31,0.1]
[1760855513848,21.83546849,186.32,186.31,0.1]
[1760855514045,10.87647521,186.31,186.28,0.1]
[1760855514248,14.20534663,186.29,186.28,0.1]
[1760855514751,37.79534663,186.29,186.28,0.1]
[1760855515178,34.46647521,186.29,186.28,0.1]
[1760855515349,33.75647521,186.29,186.28,0.1]
[1760855515677,26.20887142,186.29,186.28,0.1]
[1760855517842,26.20887142,186.29,186.28,0.78]
[1760855519163,26.20887142,186.29,186.28,0.1]
[1760855521460,22.88,186.29,186.28,0.1]
[1760855521774,3.32887142,186.29,186.28,0.78]
[1760855523873,26.91887142,186.29,186.28,0.1]
[1760855524970,4.03887142,186.29,186.28,0.1]
[1760855525754,26.91887142,186.29,186.28,0.1]
[1760855527077,4.03887142,186.29,186.28,0.1]
[1760855527374,26.91887142,186.29,186.28,0.1]
[1760855528876,37.79534663,186.29,186.28,0.1]
[1760855529467,10.87647521,186.3,186.28,0.1]
[1760855529664,3.32887142,186.29,186.28,0.1]
[1760855529870,4.03887142,186.29,186.28,0.1]
[1760855530559,3.32887142,186.29,186.28,0.1]
[1760855534664,3.32887142,186.29,186.28,0.75]
[1760855535667,3.32887142,186.29,186.28,0.1]
[1760855535868,3.32887142,186.29,186.28,0.75]
[1760855537370,3.32887142,186.29,186.28,0.1]
[1760855537568,3.32887142,186.29,186.28,0.75]
[1760855537981,3.32887142,186.29,186.28,0.1]
[1760855539702,3.32887142,186.29,186.28,0.75]
[1760855540285,3.32887142,186.29,186.26,2.25325814]
[1760855540482,3.32887142,186.27,186.26,2.25325814]
[1760855542194,3.32887142,186.27,186.26,2.90325814]
[1760855542402,3.32887142,186.28,186.26,2.90325814]
[1760855542772,3.32887142,186.28,186.26,2.25325814]
[1760855542983,102.1,186.3,186.27,0.65]
[1760855543173,3.32887142,186.28,186.27,0.65]
[1760855544394,3.32887142,186.28,186.27,2.90325814]
[1760855544999,3.32887142,186.28,186.27,2.25325814]
[1760855545193,3.32887142,186.28,186.27,2.90325814]
[1760855546999,102.1,186.3,186.27,2.90325814]
[1760855547178,3.32887142,186.28,186.27,2.25325814]
[1760855547802,3.32887142,186.28,186.27,2.90325814]
[1760855548601,3.32887142,186.28,186.27,2.25325814]
[1760855549175,3.32887142,186.28,186.27,2.90325814]
[1760855549788,102.82,186.3,186.27,2.90325814]
[1760855549789,3.32887142,186.29,186.27,2.90325814]
[1760855550000,3.32887142,186.29,186.28,0.65]
[1760855550295,102.1,186.3,186.28,0.65]
[1760855550501,3.32887142,186.29,186.28,0.65]
[1760855550675,3.32887142,186.29,186.27,2.25325814]
[1760855550880,3.32887142,186.28,186.27,2.25325814]
[1760855551599,3.32887142,186.28,186.27,2.90325814]
[1760855551894,3.32887142,186.29,186.27,2.90325814]
[1760855552098,3.32887142,186.29,186.27,2.25325814]
[1760855552276,102.1,186.3,186.28,0.65]
[1760855552482,105.42887142,186.3,186.28,0.65]